bitfinex/quotes_SOLUSD_20240926
["timestamp","ask_amount","ask_price","bid_price","bid_amount"]
[1727311823350,6.7953,147.16,147.11,6.7976]
[1727311824330,6.7948,147.17,147.12,6.797]
[1727311824530,6.7943,147.19,147.13,6.7965]
[1727311824735,6.7945,147.18,147.13,6.7965]
[1727311829133,6.7935,147.2,147.15,12.9261]
[1727311829336,6.7939,147.19,147.15,12.9265]
[1727311829551,6.7939,147.19,147.15,6.1308]
[1727311830456,6.7939,147.19,147.15,12.9265]
[1727311830655,6.7939,147.19,147.15,6.1308]
[1727311830955,6.7948,147.17,147.12,6.7971]
[1727311831132,17.1423465,147.22,147.13,6.7966]
[1727311831338,6.7944,147.18,147.13,6.7966]
[1727311832043,6.7944,147.18,147.14,6.7961]
[1727311832550,6.794,147.19,147.14,6.7961]
[1727311833359,6.794,147.19,147.12,19.43766974]
[1727311833559,6.794,147.19,147.15,6.7957]
[1727311833862,6.794,147.19,147.14,6.7961]
[1727311834662,6.7946,147.18,147.13,6.7966]
[1727311836065,6.7948,147.17,147.12,6.797]
[1727311836837,20.0,147.21,147.11,13.0626]
[1727311837042,6.7959,147.15,147.11,6.2651]
[1727311837437,20.0,147.19,147.11,6.2651]
[1727311837645,6.7971,147.12,147.07,29.7255]
[1727311837965,6.7971,147.12,147.07,22.9265]
[1727311838268,6.7971,147.12,147.07,29.7259]
[1727311838638,6.7977,147.11,147.07,6.4687]
[1727311839168,6.7962,147.15,147.09,6.7981]
[1727311839470,6.7967,147.13,147.08,6.799]
[1727311840051,6.7976,147.11,147.07,6.4687]
[1727311840455,6.7967,147.13,147.08,6.7989]
[1727311840963,6.7971,147.12,147.08,6.7989]
[1727311841271,6.7971,147.12,147.07,6.4687]
[1727311841455,6.7976,147.11,147.07,6.4687]
[1727311841648,6.7976,147.12,147.07,6.4687]
[1727311842549,6.7978,147.11,147.07,6.4687]
[1727311842950,40.44,147.16,147.07,6.4687]
[1727311843164,40.44,147.14,147.04,16.334834]
[1727311843366,6.7986,147.09,147.04,23.135534]
[1727311843560,6.7986,147.09,147.04,6.970434]
[1727311844148,23.902374,147.15,147.05,1.36005592]
[1727311844149,20.0,147.15,147.05,1.36005592]
[1727311844368,6.7977,147.11,147.06,6.7998]
[1727311844568,6.7971,147.12,147.07,6.7994]
[1727311845473,32.5094,147.16,147.11,6.7972]
[1727311845474,6.7955,147.16,147.11,6.7972]
[1727311845848,6.7961,147.15,147.07,19.43766974]
[1727311846047,6.7961,147.15,147.09,6.7984]
[1727311846266,6.98125998,147.18,147.07,19.43766974]
[1727311846471,6.98125998,147.18,147.1,6.7976]
[1727311846660,6.7957,147.15,147.1,6.7976]
[1727311847258,6.7953,147.17,147.11,6.7975]
[1727311847455,6.7955,147.16,147.11,6.7975]
[1727311848276,6.7966,147.14,147.09,6.7985]
[1727311848574,6.7958,147.15,147.08,1.35958532]
[1727311848873,6.7958,147.15,147.1,6.7976]
[1727311849382,13.77605998,147.18,147.12,6.797]
[1727311849692,0.1602465,147.22,147.13,7.46091462]
[1727311849974,15.2028,147.16,147.02,6.399856]
[1727311850185,6.7943,147.19,147.09,19.43766974]
[1727311850480,6.7943,147.19,147.1,6.1017]
[1727311850688,6.7944,147.18,147.1,6.1017]
[1727311850982,15.2028,147.21,147.1,6.1017]
[1727311850983,6.794,147.19,147.1,6.1017]
[1727311851282,6.794,147.19,147.11,19.43766974]
[1727311851460,6.794,147.19,147.1,6.1017]
[1727311851776,6.794,147.19,147.11,16.4482]
[1727311852076,6.794,147.19,147.11,35.88586974]
[1727311853573,6.7963,147.14,147.1,6.1017]
[1727311855377,6.7954,147.16,147.1,6.1017]
[1727311856457,20.66553422,147.21,147.13,19.43766974]
[1727311856784,0.1602465,147.22,147.13,19.43766974]
[1727311857353,6.7934,147.21,147.16,15.2179]
[1727311857553,0.1602465,147.22,147.17,19.43766974]
[1727311857783,0.1602465,147.22,147.18,6.6347]
[1727311858279,0.1602465,147.22,147.18,7.99344633]
[1727311858477,0.1602465,147.22,147.18,6.6347]
[1727311858869,0.1602465,147.22,147.18,7.99345193]
[1727311859065,0.1602465,147.22,147.18,6.6347]
[1727311859386,0.1602465,147.22,147.19,20.79621671]
[1727311859689,0.1602465,147.22,147.18,6.6347]
[1727311860290,6.7944,147.18,147.15,6.662]
[1727311860778,16.9828,147.21,147.12,21.8093]
[1727311860979,6.7944,147.18,147.12,21.8093]
[1727311861159,16.9828,147.21,147.12,21.8093]
[1727311861363,6.7963,147.14,147.12,6.4198]
[1727311861595,6.7962,147.14,147.12,6.4198]
[1727311861758,6.7972,147.12,147.08,15.6865]
[1727311861959,6.7976,147.11,147.07,6.4198]
[1727311862188,16.9884,147.16,147.07,6.4198]
[1727311862484,6.7966,147.14,147.07,6.4198]
[1727311862955,40.761784,147.19,147.07,6.4198]
[1727311863160,6.7976,147.11,147.07,6.4198]
[1727311863377,16.9884,147.16,147.07,6.4198]
[1727311863770,6.7976,147.11,147.07,6.4198]
[1727311865370,16.9884,147.16,147.07,6.4198]
[1727311865570,6.7971,147.12,147.07,13.2192]
[1727311865775,6.7967,147.13,147.07,13.2192]
[1727311866753,6.7967,147.13,147.07,6.4198]
[1727311866994,23.776884,147.19,147.07,6.4198]
[1727311866995,6.7962,147.14,147.07,6.4198]
[1727311867192,6.7958,147.15,147.07,6.4198]
[1727311867367,16.9848,147.19,147.07,6.4198]
[1727311867885,72.5373465,147.22,147.09,16.5999]
[1727311867886,6.7944,147.18,147.09,16.5999]
[1727311868583,6.7944,147.18,147.1,1.48470693]
[1727311869089,39.5187465,147.22,147.1,1.48470693]
[1727311869385,6.7939,147.19,147.1,1.48470693]
[1727311870061,6.7939,147.19,147.1,0.12549]
[1727311870265,6.7939,147.19,147.1,1.48463417]
[1727311870465,0.1602465,147.22,147.12,0.25098]
[1727311870792,0.1602465,147.22,147.12,24.027864]
[1727311870992,0.1602465,147.22,147.13,15.7148]
[1727311871189,0.1602465,147.22,147.14,31.24557452]
[1727311871797,0.1602465,147.22,147.15,6.4907]
[1727311871982,0.1602465,147.22,147.16,0.12549]
[1727311872497,0.1602465,147.22,147.15,6.4907]
[1727311873302,6.7936,147.2,147.15,6.4907]
[1727311873471,6.794,147.19,147.15,6.4907]
[1727311873671,6.7948,147.17,147.15,6.4907]
[1727311873907,6.7949,147.17,147.15,6.4907]
[1727311874200,6.7953,147.16,147.15,6.4907]
[1727311874413,6.7953,147.16,147.13,15.7148]
[1727311874977,6.7949,147.17,147.13,15.7148]
[1727311875205,6.7943,147.19,147.13,15.7148]
[1727311875589,6.7946,147.18,147.13,15.7148]
[1727311875790,6.7939,147.19,147.13,15.7148]
[1727311876397,6.7944,147.18,147.13,15.7148]
[1727311876699,6.7949,147.17,147.13,15.7148]
[1727311876886,20.0,147.21,147.11,6.539]
[1727311877200,6.7962,147.15,147.11,6.539]
[1727311877401,6.7952,147.17,147.11,6.539]
[1727311877905,20.0,147.21,147.11,6.539]
[1727311877906,6.794,147.19,147.11,6.539]
[1727311878078,22.1663465,147.22,147.11,6.539]
[1727311878286,0.1602465,147.22,147.11,6.539]
[1727311878486,6.7939,147.19,147.12,0.12549]
[1727311878808,6.7951,147.17,147.11,6.539]
[1727311879109,6.7944,147.18,147.11,6.539]
[1727311879698,17.1425465,147.22,147.11,6.539]
[1727311879992,6.7946,147.18,147.11,6.539]
[1727311881105,16.9845,147.2,147.11,6.539]
[1727311881498,0.1602465,147.22,147.11,6.539]
[1727311881690,6.7942,147.19,147.12,1.35904484]
[1727311882023,6.7942,147.19,147.11,6.539]
[1727311882386,6.7942,147.19,147.12,1.35899428]
[1727311882588,6.7942,147.19,147.11,6.539]
[1727311882791,6.7935,147.2,147.12,0.25098]
[1727311883003,6.7937,147.2,147.12,0.25098]
[1727311883512,6.7931,147.21,147.12,0.25098]
[1727311883712,6.7931,147.21,147.12,24.027864]
[1727311884097,7.0539785,147.21,147.12,24.027864]
[1727311884790,0.2608785,147.21,147.14,0.12549]
[1727311884996,0.2608785,147.21,147.13,31.12008452]
[1727311885193,0.2608785,147.21,147.12,0.12549]
[1727311885411,6.7935,147.2,147.12,0.12549]
[1727311885918,7.0539785,147.21,147.12,1.48439242]
[1727311886216,0.2608785,147.21,147.13,23.902374]
[1727311886425,0.2608785,147.21,147.14,0.12549]
[1727311887718,0.2608785,147.21,147.15,15.1117]
[1727311887906,0.2608785,147.21,147.16,6.49969]
[1727311893427,0.2608785,147.21,147.17,32.47862134]
[1727311893628,0.2608785,147.21,147.2,31.12008452]
[1727311893838,0.2608785,147.21,147.2,47.80778819]
[1727311894205,0.2882313,147.26,147.22,0.12549]
[1727311894526,0.2882313,147.26,147.22,1.48344063]
[1727311894715,0.2882313,147.26,147.22,0.12549]
[1727311894916,0.2882313,147.26,147.22,1.48345349]
[1727311895622,0.2882313,147.26,147.22,0.12549]
[1727311895831,0.2882313,147.26,147.24,0.12549]
[1727311896215,0.2882313,147.26,147.25,1.35777313]
[1727311896827,0.2882313,147.26,147.25,1.48326313]
[1727311897044,0.2882313,147.26,147.25,0.12549]
[1727311898013,0.2882313,147.26,147.25,0.25098]
[1727311898327,0.2882313,147.26,147.2,52.41388452]
[1727311898832,0.2882313,147.26,147.21,1.3580454]
[1727311899628,0.2882313,147.26,147.24,24.027864]
[1727311902332,0.2882313,147.26,147.24,43.42614504]
[1727311905128,0.2882313,147.26,147.21,19.39828104]
[1727311905513,0.2882313,147.26,147.23,19.39828104]
[1727311905932,0.2882313,147.26,147.2,21.2938]
[1727311906940,0.2882313,147.26,147.21,1.35815051]
[1727311907449,0.2882313,147.26,147.2,6.0898]
[1727311907450,7.0793313,147.26,147.2,6.0898]
[1727311907650,6.7911,147.25,147.16,21.7079]
[1727311907848,0.2882313,147.26,147.16,21.7079]
[1727311908855,6.7925,147.22,147.12,53.9748416]
[1727311909346,6.73171,147.23,147.13,1.35864041]
[1727311909533,6.73171,147.23,147.12,53.9748416]
[1727311910234,6.73171,147.23,147.13,24.027864]
[1727311910551,22.7167,147.25,147.12,53.9748416]
[1727311910739,6.7931,147.21,147.12,53.9748416]
[1727311912346,6.7931,147.21,147.13,24.027864]
[1727311912653,6.7939,147.19,147.09,31.3527729]
[1727311913851,6.7939,147.19,147.11,0.25098]
[1727311917534,6.7939,147.19,147.12,1.35899033]
[1727311918362,6.7935,147.2,147.13,0.12549]
[1727311918547,6.7921,147.23,147.13,25.38671715]
[1727311918852,6.7921,147.23,147.13,24.027864]
[1727311919229,6.7926,147.22,147.13,24.027864]
[1727311920353,6.7926,147.22,147.14,1.35868243]
[1727311920549,20.0,147.24,147.14,1.35868243]
[1727311920550,6.7921,147.23,147.15,24.027864]
[1727311920952,6.7925,147.22,147.15,24.027864]
[1727311921132,6.793,147.21,147.15,0.12549]
[1727311921328,6.7941,147.19,147.09,0.2882313]
[1727311921532,6.7944,147.18,147.09,31.3527729]
[1727311921751,6.7939,147.2,147.12,31.0645416]
[1727311922066,20.0,147.24,147.13,1.35891964]
[1727311922241,20.0,147.24,147.09,31.3527729]
[1727311922732,6.794,147.19,147.09,31.3527729]
[1727311922953,6.794,147.19,147.1,24.027864]
[1727311923472,20.0,147.24,147.1,24.027864]
[1727311923473,6.7935,147.2,147.1,24.027864]
[1727311923772,6.7939,147.19,147.1,24.027864]
[1727311924171,20.0,147.24,147.1,24.027864]
[1727311924374,6.7944,147.18,147.1,24.027864]
[1727311924549,20.0,147.24,147.1,24.027864]
[1727311924743,6.794,147.19,147.1,24.027864]
[1727311925178,6.7944,147.18,147.1,24.027864]
[1727311925346,6.7958,147.15,147.09,0.2882313]
[1727311925555,6.7954,147.16,147.09,0.2882313]
[1727311926152,6.7949,147.17,147.09,0.2882313]
[1727311926346,6.7949,147.17,147.1,1.35912721]
[1727311926545,6.7949,147.17,147.09,19.72759142]
[1727311926773,6.7953,147.16,147.09,19.72759142]
[1727311926983,6.7953,147.16,147.1,0.12549]
[1727311927155,23.2279,147.16,147.1,0.12549]
[1727311927474,6.7958,147.15,147.1,0.12549]
[1727311927678,16.4326,147.16,147.1,0.12549]
[1727311927881,16.4326,147.16,147.11,19.43936012]
[1727311928175,16.4326,147.2,147.16,0.12549]
[1727311928345,22.8476,147.25,147.16,0.12549]
[1727311928549,22.8476,147.25,147.16,0.25098]
[1727311928776,22.8476,147.25,147.16,24.027864]
[1727311929149,6.792,147.24,147.16,24.027864]
[1727311929368,6.7921,147.23,147.16,24.027864]
[1727311929554,6.7925,147.22,147.16,0.12549]
[1727311930489,6.7921,147.23,147.16,24.027864]
[1727311930958,6.7921,147.23,147.15,24.027864]
[1727311931269,29.6391,147.25,147.17,24.027864]
[1727311931482,22.8476,147.25,147.17,24.027864]
[1727311931768,29.6388,147.25,147.17,24.027864]
[1727311932385,16.4326,147.25,147.18,1.35843212]
[1727311932754,16.4326,147.25,147.17,55.1065527]
[1727311933157,23.2239,147.25,147.17,55.1065527]
[1727311933674,16.4326,147.25,147.17,24.027864]
[1727311934177,16.4326,147.25,147.17,0.12549]
[1727311934552,20.0,147.24,147.11,53.5441887]
[1727311934863,6.7934,147.2,147.11,53.5441887]
[1727311935553,16.9798,147.24,147.11,22.4655]
[1727311935755,20.0,147.21,147.11,22.4655]
[1727311935955,20.0,147.21,147.08,31.0786887]
[1727311936169,6.7958,147.15,147.07,21.6795]
[1727311936862,16.0641,147.18,147.07,21.6795]
[1727311936863,6.7963,147.14,147.07,21.6795]
[1727311937060,6.7958,147.15,147.07,21.6795]
[1727311937452,20.0,147.17,147.07,6.0364]
[1727311937651,6.7972,147.12,147.07,6.0364]
[1727311937877,6.7972,147.12,147.03,22.7310313]
[1727311938464,6.7977,147.11,147.03,22.7310313]
[1727311938878,6.798,147.1,147.03,22.7310313]
[1727311940090,6.798,147.1,147.05,6.8002]
[1727311940588,41.8689,147.1,147.03,0.2882313]
[1727311941787,65.645784,147.1,147.03,0.2882313]
[1727311941956,6.8004,147.05,147.03,0.2882313]
[1727311943484,43.4943,147.09,147.04,0.2978096]
[1727311943785,6.8004,147.05,147.04,0.2978096]
[1727311944287,25.14207169,147.05,147.04,0.2978096]
[1727311944589,25.14207169,147.05,147.02,0.2506172]
[1727311944590,26.8013,147.03,147.02,0.2506172]
[1727311944805,26.8022,147.01,147.0,29.0]
[1727311945087,50.579084,147.01,147.0,29.0]
[1727311945293,26.8031,146.99,146.98,0.2506172]
[1727311946207,26.8031,146.99,146.93,0.2506172]
[1727311946208,6.8045,146.96,146.93,0.2506172]
[1727311948205,26.8045,146.96,146.93,0.2506172]
[1727311957134,47.2445,146.96,146.93,0.2506172]
[1727311957694,71.021384,146.96,146.93,0.2506172]
[1727311957897,47.2445,146.96,146.93,0.2506172]
[1727311959811,26.8045,146.96,146.93,0.2506172]
[1727311962722,47.2445,146.96,146.93,0.2506172]
[1727311963307,71.021384,146.96,146.93,0.2506172]
[1727311963505,71.272364,146.96,146.95,3.4e-05]
[1727311964925,6.8045,146.96,146.95,3.4e-05]
[1727311965139,27.2445,146.96,146.95,3.4e-05]
[1727311965426,6.8045,146.96,146.95,3.4e-05]
[1727311966225,47.2445,146.96,146.95,3.4e-05]
[1727311967136,71.021384,146.96,146.95,3.4e-05]
[1727311967833,6.8054,146.94,146.93,0.2506172]
[1727311968329,26.8054,146.94,146.93,0.2506172]
[1727311970955,6.8054,146.94,146.93,0.2506172]
[1727311971250,26.8054,146.94,146.93,0.2506172]
[1727311972852,6.8054,146.94,146.93,0.2506172]
[1727311973243,26.8054,146.94,146.93,0.2506172]
[1727311978263,6.8054,146.94,146.93,0.2506172]
[1727311979258,6.8049,146.96,146.93,0.2506172]
[1727311979464,6.8041,146.97,146.93,0.2506172]
[1727311980134,6.8046,146.96,146.93,0.2506172]
[1727311980939,6.8044,146.97,146.93,0.2506172]
[1727311981541,6.8046,146.96,146.93,0.2506172]
[1727311981748,20.0,146.97,146.93,0.2506172]
[1727311982542,6.8054,146.94,146.93,0.2506172]
[1727311983234,26.8054,146.94,146.93,0.2506172]
[1727311984350,6.8049,146.96,146.93,0.2506172]
[1727311984657,6.8031,147.0,146.93,0.2506172]
[1727311984860,6.8019,147.02,146.95,6.8046]
[1727311985061,6.8022,147.01,146.93,15.5641172]
[1727311985256,15.1558,147.05,146.93,15.5641172]
[1727311985453,15.1558,147.05,146.94,6.8051]
[1727311985669,20.44,147.04,146.94,6.8051]
[1727311985975,20.44,147.04,146.95,6.8049]
[1727311986478,20.0,147.03,146.96,6.8045]
[1727311986657,40.44,147.04,146.97,6.8038]
[1727311987471,20.0,147.04,146.98,6.8035]
[1727311987774,40.44,147.06,146.99,6.8028]
[1727311987991,16.6800172,147.09,147.0,6.3234]
[1727311988152,16.6800172,147.09,147.0,13.1259]
[1727311988351,16.6800172,147.09,147.0,6.3234]
[1727311988772,20.44,147.08,147.0,6.3234]
[1727311989074,20.44,147.08,147.0,13.1259]
[1727311989880,20.44,147.08,147.0,6.3234]
[1727311990069,0.2506172,147.09,147.01,16.1474]
[1727311990952,0.2506172,147.09,147.02,6.8017]
[1727311991666,0.2506172,147.09,147.01,16.1474]
[1727311991867,0.2506172,147.09,147.06,6.7999]
[1727311992063,0.2506172,147.09,147.05,6.8003]
[1727311992368,0.2506172,147.09,147.01,16.1474]
[1727311993781,40.6906172,147.09,147.01,16.1474]
[1727311993964,20.2506172,147.09,147.01,16.1474]
[1727311994163,20.2506172,147.09,147.02,6.8016]
[1727311994697,40.6906172,147.09,147.01,22.9496]
[1727311995367,20.2506172,147.09,147.01,16.1474]
[1727311995686,20.2506172,147.09,147.01,22.9494]
[1727311995893,20.2506172,147.09,147.01,16.1474]
[1727311996381,40.6906172,147.09,147.01,16.1474]
[1727311996587,40.6906172,147.09,147.02,6.8016]
[1727311997783,20.0,147.07,147.0,6.3234]
[1727311997977,20.0,147.07,146.93,0.2506172]
[1727311997978,23.776884,147.04,146.97,15.4288]
[1727311998173,44.216884,147.04,146.97,15.4288]
[1727311998488,6.8018,147.02,146.97,15.4288]
[1727311999491,6.8018,147.02,146.97,22.2327]
[1727312002088,16.9985,147.08,146.97,22.2327]
[1727312002089,20.0,147.06,146.98,19.50734812]
[1727312002298,7.16238007,147.09,146.99,1.36055545]
[1727312002586,20.0,147.08,147.0,19.50734812]
[1727312002793,7.0491172,147.09,147.03,6.8009]
[1727312003091,0.2506172,147.09,147.03,6.6331]
[1727312003389,0.2506172,147.09,147.04,20.86751391]
[1727312003573,0.2506172,147.09,147.07,6.7993]
[1727312003778,0.2506172,147.09,147.08,6.799]
[1727312005375,0.2506172,147.09,147.08,26.30634812]
[1727312006168,0.15843875,147.09,147.08,26.30634812]
[1727312006374,0.15843875,147.09,147.08,6.799]
[1727312007270,0.15843875,147.09,147.08,37.91465636]
[1727312007687,0.2506172,147.13,147.08,37.66915636]
[1727312007890,0.2506172,147.13,147.12,6.7971]
[1727312008878,0.2506172,147.13,147.12,8.15634489]
[1727312009393,0.2506172,147.13,147.12,6.7971]
[1727312010283,0.2506172,147.13,147.12,8.1563753]
[1727312010595,0.2506172,147.13,147.12,6.7971]
[1727312018195,0.2506172,147.13,147.08,6.5535]
[1727312018393,7.0473172,147.13,147.04,37.28235636]
[1727312018699,0.2506172,147.13,147.04,37.28235636]
[1727312018897,0.2506172,147.13,147.11,6.7975]
[1727312020409,0.2506172,147.13,147.12,6.7971]
[1727312022910,0.4203512,147.18,147.17,6.7948]
[1727312024790,0.4203512,147.18,147.17,37.91045636]
[1727312025215,0.2506172,147.22,147.17,31.24114636]
[1727312025390,0.2506172,147.22,147.21,6.793]
[1727312025588,0.2506172,147.22,147.21,8.15141252]
[1727312025888,0.2506172,147.22,147.21,6.793]
[1727312026313,0.2506172,147.22,147.21,26.19899032]
[1727312028422,0.2506172,147.22,147.21,6.793]
[1727312029411,0.2506172,147.22,147.21,8.15135343]
[1727312029791,0.2506172,147.22,147.21,6.793]
[1727312030311,0.2506172,147.22,147.21,6.91849]
[1727312030687,0.2506172,147.22,147.21,8.2766882]
[1727312030889,0.4203512,147.27,147.26,6.7907]
[1727312032511,15.9128,147.35,147.23,31.05612068]
[1727312032512,0.317866,147.3,147.28,6.7897]
[1727312032708,0.245894,147.27,147.26,60.97050068]
[1727312032899,0.317866,147.3,147.29,6.7893]
[1727312033604,0.317866,147.3,147.29,37.84542068]
[1727312034211,0.4876,147.36,147.32,31.05612068]
[1727312034515,0.4876,147.36,147.33,0.12549]
[1727312034830,0.4876,147.36,147.33,1.48260088]
[1727312035119,0.4876,147.36,147.35,31.05612068]
[1727312035325,0.317866,147.42,147.36,0.25098]
[1727312035629,0.317866,147.42,147.35,31.05612068]
[1727312035796,0.317866,147.42,147.36,0.12549]
[1727312036199,0.317866,147.42,147.36,0.25098]
[1727312036528,0.317866,147.42,147.37,1.3567638]
[1727312036726,0.317866,147.42,147.35,31.05612068]
[1727312037605,7.101166,147.42,147.35,31.05612068]
[1727312038006,0.317866,147.42,147.36,0.25098]
[1727312038320,0.317866,147.42,147.39,0.12549]
[1727312038491,0.317866,147.42,147.38,31.05612068]
[1727312040614,0.317866,147.42,147.38,37.17249102]
[1727312042310,0.317866,147.42,147.35,37.42347102]
[1727312042517,0.317866,147.42,147.36,1.35683465]
[1727312042810,0.317866,147.42,147.39,0.12549]
[1727312043214,0.317866,147.42,147.41,37.17249102]
[1727312043630,0.317866,147.42,147.41,57.17249102]
[1727312044201,0.169734,147.45,147.42,0.25098]
[1727312044504,0.169734,147.45,147.44,37.29798102]
[1727312044709,0.169734,147.45,147.44,37.42347102]
[1727312045109,0.169734,147.45,147.44,37.29798102]
[1727312045311,0.169734,147.45,147.44,37.42347102]
[1727312045502,15.7089,147.51,147.44,37.42347102]
[1727312045707,0.2335325,147.46,147.44,37.42347102]
[1727312046021,0.2335325,147.46,147.44,37.29798102]
[1727312046328,0.2335325,147.46,147.45,1.35606336]
[1727312047799,0.2335325,147.46,147.45,0.25098]
[1727312048309,13.015634,147.54,147.46,0.25098]
[1727312048506,13.015634,147.54,147.47,37.17249102]
[1727312048723,6.947634,147.54,147.47,37.17249102]
[1727312048921,6.947634,147.54,147.48,1.35584395]
[1727312052329,6.947634,147.54,147.48,24.56060279]
[1727312052521,6.947634,147.54,147.49,1.35582512]
[1727312053326,43.946618,147.54,147.42,20.0]
[1727312053502,6.7801,147.49,147.43,23.20475884]
[1727312053899,0.169734,147.54,147.45,23.20475884]
[1727312054127,0.169734,147.54,147.47,23.20475884]
[1727312054420,0.169734,147.54,147.49,23.20475884]
[1727312054628,0.169734,147.54,147.5,1.35562951]
[1727312055015,0.169734,147.54,147.51,23.33024884]
[1727312055208,0.169734,147.54,147.52,1.35537367]
[1727312055604,0.169734,147.54,147.53,23.20475884]
[1727312055817,0.169734,147.54,147.53,23.33024884]
[1727312057633,0.169734,147.54,147.53,23.45573884]
[1727312058311,0.169734,147.54,147.51,0.25098]
[1727312059829,0.169734,147.54,147.51,24.027864]
[1727312060050,0.169734,147.54,147.51,0.25098]
[1727312061525,0.169734,147.54,147.48,23.20475884]
[1727312061760,0.169734,147.54,147.49,20.0]
[1727312061926,0.169734,147.54,147.49,21.35561447]
[1727312062440,0.169734,147.54,147.49,1.35561447]
[1727312062745,0.169734,147.54,147.53,0.25098]
[1727312063052,0.169734,147.54,147.53,8.23351853]
[1727312063352,0.169734,147.54,147.53,6.87838]
[1727312063558,0.169734,147.54,147.53,28.23344466]
[1727312063751,0.169734,147.54,147.53,26.87838]
[1727312064050,0.169734,147.54,147.53,52.01032889]
[1727312064260,0.5027765,147.55,147.54,67.23262284]
[1727312064433,0.5027765,147.55,147.54,82.4678284]
[1727312064951,0.5027765,147.55,147.54,81.11297468]
[1727312065142,0.5027765,147.55,147.54,82.46783]
[1727312065341,0.0682104,147.61,147.55,20.25098]
[1727312065649,0.0682104,147.61,147.57,0.25098]
[1727312066156,0.0682104,147.61,147.57,37.33609068]
[1727312067254,0.0682104,147.61,147.6,37.33609068]
[1727312067454,0.0682104,147.61,147.6,0.25098]
[1727312072643,0.0682104,147.61,147.6,0.12549]
[1727312074547,0.0682104,147.61,147.54,23.776884]
[1727312074746,0.0682104,147.61,147.53,6.6274]
[1727312075557,0.0682104,147.61,147.54,1.35491261]
[1727312075738,0.0682104,147.61,147.54,21.35491261]
[1727312075943,0.0682104,147.61,147.55,0.25098]
[1727312076765,0.0682104,147.61,147.57,0.25098]
[1727312076960,0.0682104,147.61,147.58,1.35488784]
[1727312077851,6.8428104,147.61,147.57,0.12549]
[1727312078259,6.8428104,147.61,147.56,0.25098]
[1727312078460,0.0682104,147.61,147.58,0.12549]
[1727312078663,0.0682104,147.61,147.59,1.35488759]
[1727312078870,0.0682104,147.61,147.56,1.60586803]
[1727312079248,0.0682104,147.61,147.53,6.6274]
[1727312079478,0.0682104,147.61,147.54,21.35516375]
[1727312079773,6.8428104,147.61,147.54,21.35516375]
[1727312080073,0.0682104,147.61,147.54,21.35516375]
[1727312080966,0.0682104,147.61,147.55,0.12549]
[1727312080967,6.8428104,147.61,147.55,0.12549]
[1727312081173,6.8428104,147.61,147.55,0.25098]
[1727312081354,6.7752,147.6,147.55,0.25098]
[1727312082285,6.8428104,147.61,147.55,0.25098]
[1727312084151,0.0682104,147.61,147.55,0.25098]
[1727312084376,6.7751,147.6,147.55,0.25098]
[1727312084679,6.7751,147.6,147.55,0.12549]
[1727312085061,6.8428104,147.61,147.54,0.25098]
[1727312086759,0.0682104,147.61,147.56,0.25098]
[1727312086958,0.0682104,147.61,147.57,1.35497771]
[1727312088465,6.8429104,147.61,147.56,0.12549]
[1727312088681,0.0682104,147.61,147.57,0.25098]
[1727312088869,0.0682104,147.61,147.58,1.35497967]
[1727312089766,0.0682104,147.61,147.57,1.60596018]
[1727312090774,0.0682104,147.61,147.56,0.25098]
[1727312090974,0.0682104,147.61,147.57,1.35498099]
[1727312092762,0.0682104,147.61,147.59,20.25098]
[1727312092992,0.0682104,147.61,147.6,1.60553309]
[1727312093368,0.0682104,147.61,147.6,68.57008959]
[1727312093968,0.0682104,147.61,147.6,67.2155365]
[1727312094394,0.0682104,147.61,147.6,44.027864]
[1727312095679,0.0682104,147.61,147.6,0.25098]
[1727312098187,0.0682104,147.61,147.6,1.60553455]
[1727312099171,0.0682104,147.61,147.6,0.25098]
[1727312099591,0.0682104,147.61,147.6,45.38234711]
[1727312099783,0.0682104,147.61,147.6,68.57001961]
[1727312100188,0.0682104,147.61,147.6,67.2155365]
[1727312100372,0.0682104,147.61,147.6,20.25098]
[1727312100575,0.0682104,147.61,147.6,0.25098]